fUSD/lending_fUSD_20250124
["ID","MTS","AMOUNT","RATE_DAILY","PERIOD"]
[350223728,1737706241741,-500.0,0.00018897,2]
[350223730,1737706241751,-456.67697723,0.00018897,2]
[350223801,1737706242462,-43.32302277,0.00018897,2]
[350223803,1737706242472,-528.08656584,0.00018897,2]
[350223805,1737706242481,-500.0,0.00018897,2]
[350223807,1737706242492,-500.0,0.00018897,2]
[350223809,1737706242501,-500.0,0.00018897,2]
[350223811,1737706242510,-503.35422246,0.00018897,2]
[350223813,1737706242519,-500.0,0.00018897,2]
[350223815,1737706242528,-500.0,0.00018897,2]
[350223817,1737706242538,-500.0,0.00018897,2]
[350223819,1737706242547,-500.0,0.00018897,2]
[350223821,1737706242556,-500.0,0.00018897,2]
[350223824,1737706242566,-500.0,0.00018897,2]
[350223825,1737706242575,-500.0,0.00018897,2]
[350223828,1737706242585,-500.0,0.00018897,2]
[350223830,1737706242594,-500.0,0.00018897,2]
[350223832,1737706242604,-507.45927865,0.00018897,2]
[350223849,1737706242754,-197.68970778,0.00018897,2]
[350223852,1737706242772,-302.31029222,0.00018897,2]
[350223854,1737706242782,-500.0,0.00018897,2]
[350223856,1737706242791,-124.17052838,0.00018897,2]
[350223865,1737706242863,-375.82947162,0.00018897,2]
[350223867,1737706242872,-500.0,0.00018897,2]
[350223869,1737706242880,-500.0,0.00018897,2]
[350223871,1737706242889,-500.0,0.00018897,2]
[350223873,1737706242898,-500.0,0.00018897,2]
[350223875,1737706242907,-500.0,0.00018897,2]
[350223877,1737706242916,-507.32553183,0.00018897,2]
[350223879,1737706242925,-500.0,0.00018897,2]
[350223881,1737706242934,-500.0,0.00018897,2]
[350223883,1737706242944,-500.0,0.00018897,2]
[350223885,1737706242953,-500.0,0.00018897,2]
[350223887,1737706242962,-500.0,0.00018897,2]
[350223889,1737706242974,-500.0,0.00018897,2]
[350223890,1737706242984,-500.0,0.00018897,2]
[350223892,1737706242993,-500.0,0.00018897,2]
[350223895,1737706243003,-631.57,0.00018897,2]
[350223897,1737706243013,-500.0,0.00018897,2]
[350223899,1737706243023,-1000.0,0.00018897,30]
[350223901,1737706243032,-500.0,0.00018897,2]
[350223903,1737706243041,-500.0,0.00018897,2]
[350223905,1737706243053,-500.0,0.00018897,2]
[350223907,1737706243063,-1579.7,0.00018897,2]
[350223909,1737706243073,-500.0,0.00018897,2]
[350223911,1737706243081,-500.0,0.00018897,2]
[350223913,1737706243091,-500.0,0.00018897,2]
[350223915,1737706243101,-887.56,0.00018897,2]
[350223916,1737706243110,-500.0,0.00018897,2]
[350223918,1737706243119,-500.0,0.00018897,2]
[350223920,1737706243128,-500.0,0.00018897,2]
[350223922,1737706243137,-500.0,0.00018897,2]
[350223924,1737706243146,-500.0,0.00018897,2]
[350223927,1737706243156,-500.0,0.00018897,2]
[350223928,1737706243166,-500.0,0.00018897,2]
[350223931,1737706243175,-500.0,0.00018897,2]
[350223935,1737706243184,-500.0,0.00018897,2]
[350223938,1737706243194,-500.0,0.00018897,2]
[350223941,1737706243203,-500.0,0.00018897,2]
[350223944,1737706243212,-578.99,0.00018897,2]
[350223946,1737706243222,-500.0,0.00018897,2]
[350223948,1737706243232,-500.0,0.00018897,2]
[350223950,1737706243241,-500.0,0.00018897,2]
[350223952,1737706243251,-500.0,0.00018897,2]
[350223954,1737706243260,-619.43,0.00018897,2]
[350223956,1737706243269,-500.0,0.00018897,2]
[350223958,1737706243278,-500.0,0.00018897,2]
[350223960,1737706243287,-2726.64,0.00018897,2]
[350223962,1737706243295,-500.0,0.00018897,2]
[350223964,1737706243304,-500.0,0.00018897,2]
[350223966,1737706243312,-500.0,0.00018897,2]
[350223968,1737706243321,-500.0,0.00018897,2]
[350223970,1737706243331,-1051.99,0.00018897,2]
[350223972,1737706243340,-500.0,0.00018897,2]
[350223974,1737706243350,-500.0,0.00018897,2]
[350223975,1737706243359,-983.78,0.00018897,2]
[350223977,1737706243368,-1117.71,0.00018897,2]
[350223979,1737706243377,-500.0,0.00018897,2]
[350223981,1737706243387,-500.0,0.00018897,2]
[350223983,1737706243396,-1749.61,0.00018897,2]
[350223985,1737706243405,-500.0,0.00018897,2]
[350223987,1737706243414,-500.0,0.00018897,2]
[350223989,1737706243423,-500.0,0.00018897,2]
[350223991,1737706243432,-1438.45,0.00018897,2]
[350223993,1737706243442,-500.0,0.00018897,2]
[350223995,1737706243451,-500.0,0.00018897,2]
[350223997,1737706243461,-500.0,0.00018897,2]
[350223999,1737706243470,-1858.76,0.00018897,2]
[350224001,1737706243479,-2402.84,0.00018897,2]
[350224003,1737706243489,-500.0,0.00018897,2]
[350224005,1737706243499,-722.74,0.00018897,2]
[350224007,1737706243507,-500.0,0.00018897,2]
[350224009,1737706243516,-583.84,0.00018897,2]
[350224011,1737706243527,-500.0,0.00018897,2]
[350224013,1737706243536,-500.0,0.00018897,2]
[350224015,1737706243545,-500.0,0.00018897,2]
[350224017,1737706243554,-2166.27,0.00018897,2]
[350224019,1737706243564,-500.0,0.00018897,2]
[350224021,1737706243573,-500.0,0.00018897,2]
[350224023,1737706243582,-2432.34,0.00018897,2]
[350224025,1737706243591,-1093.48,0.00018897,2]
[350224027,1737706243601,-500.0,0.00018897,2]
[350224029,1737706243610,-2439.62,0.00018897,2]
[350224031,1737706243619,-500.0,0.00018897,2]
[350224033,1737706243628,-500.0,0.00018897,2]
[350224035,1737706243637,-500.0,0.00018897,2]
[350224037,1737706243646,-500.0,0.00018897,2]
[350224039,1737706243655,-500.0,0.00018897,2]
[350224041,1737706243665,-500.0,0.00018897,2]
[350224043,1737706243674,-1152.9,0.00018897,2]
[350224045,1737706243683,-500.0,0.00018897,2]
[350224047,1737706243691,-500.0,0.00018897,2]
[350224049,1737706243701,-1696.2,0.00018897,2]
[350224051,1737706243711,-870.8,0.00018897,2]
[350224053,1737706243720,-728.88,0.00018897,2]
[350224055,1737706243729,-500.0,0.00018897,2]
[350224056,1737706243738,-500.0,0.00018897,2]
[350224058,1737706243747,-549.32,0.00018897,2]
[350224060,1737706243756,-906.43,0.00018897,2]
[350224062,1737706243765,-500.0,0.00018897,2]
[350224064,1737706243774,-2916.01,0.00018897,2]
[350224066,1737706243783,-500.0,0.00018897,2]
[350224068,1737706243793,-500.0,0.00018897,2]
[350224070,1737706243802,-500.0,0.00018897,2]
[350224072,1737706243811,-500.0,0.00018897,2]
[350224074,1737706243820,-500.0,0.00018897,2]
[350224076,1737706243829,-661.59,0.00018897,2]
[350224078,1737706243838,-500.0,0.00018897,2]
[350224080,1737706243847,-500.0,0.00018897,2]
[350224081,1737706243858,-1447.69,0.00018897,2]
[350224082,1737706243867,-500.0,0.00018897,2]
[350224083,1737706243875,-520.21571143,0.00018897,2]
[350224084,1737706243885,-500.0,0.00018897,2]
[350224085,1737706243894,-1062.14,0.00018897,2]
[350224086,1737706243903,-508.34100607,0.00018897,2]
[350224087,1737706243912,-1751.91,0.00018897,2]
[350224088,1737706243921,-500.0,0.00018897,2]
[350224089,1737706243930,-500.0,0.00018897,2]
[350224090,1737706243939,-506.77973168,0.00018897,2]
[350224091,1737706243949,-567.77453733,0.00018897,2]
[350224093,1737706243958,-1762.07,0.00018897,2]
[350224095,1737706243971,-1195.14,0.00018897,2]
[350224097,1737706243980,-500.0,0.00018897,2]
[350224098,1737706243989,-500.0,0.00018897,2]
[350224100,1737706243998,-500.0,0.00018897,2]
[350224102,1737706244007,-500.0,0.00018897,2]
[350224104,1737706244018,-1508.47,0.00018897,2]
[350224106,1737706244027,-500.0,0.00018897,2]
[350224108,1737706244037,-501.29009274,0.00018897,2]
[350224110,1737706244047,-500.0,0.00018897,2]
[350224112,1737706244056,-500.0,0.00018897,2]
[350224114,1737706244065,-500.0,0.00018897,2]
[350224116,1737706244076,-500.0,0.00018897,2]
[350224118,1737706244085,-706.25,0.00018897,2]
[350224120,1737706244095,-500.0,0.00018897,2]
[350224122,1737706244104,-500.0,0.00018897,2]
[350224124,1737706244114,-500.0,0.00018897,2]
[350224126,1737706244122,-724.51,0.00018897,2]
[350224128,1737706244131,-872.88,0.00018897,2]
[350224130,1737706244141,-500.0,0.00018897,2]
[350224132,1737706244149,-500.0,0.00018897,2]
[350224134,1737706244159,-500.0,0.00018897,2]
[350224136,1737706244168,-500.0,0.00018897,2]
[350224138,1737706244178,-500.0,0.00018897,2]
[350224140,1737706244187,-500.0,0.00018897,2]
[350224142,1737706244196,-516.75,0.00018897,2]
[350224144,1737706244205,-2641.76,0.00018897,2]
[350224146,1737706244214,-500.0,0.00018897,2]
[350224148,1737706244223,-383.01070467,0.00018897,2]
[350224150,1737706244231,-551.55736126,0.00018897,2]
[350224152,1737706244241,-500.0,0.00018897,2]
[350224154,1737706244250,-500.0,0.00018897,2]
[350224156,1737706244259,-500.0,0.00018897,2]
[350224158,1737706244268,-500.0,0.00018897,2]
[350224160,1737706244277,-500.0,0.00018897,2]
[350224162,1737706244286,-739.21,0.00018897,2]
[350224164,1737706244295,-500.0,0.00018897,2]
[350224166,1737706244304,-865.88,0.00018897,2]
[350224168,1737706244313,-743.47,0.00018897,2]
[350224170,1737706244323,-621.77082675,0.00018897,2]
[350224172,1737706244333,-500.0,0.00018897,2]
[350224174,1737706244342,-500.0,0.00018897,2]
[350224176,1737706244354,-514.03722333,0.00018897,2]
[350224178,1737706244364,-500.0,0.00018897,2]
[350224180,1737706244373,-555.71,0.00018897,2]
[350224182,1737706244382,-500.0,0.00018897,2]
[350224184,1737706244391,-500.0,0.00018897,2]
[350224186,1737706244400,-500.0,0.00018897,2]
[350224188,1737706244410,-500.0,0.00018897,2]
[350224190,1737706244419,-500.0,0.00018897,2]
[350224192,1737706244429,-500.0,0.00018897,2]
[350224194,1737706244438,-1459.86,0.00018897,2]
[350224196,1737706244447,-500.0,0.00018897,2]
[350224198,1737706244456,-500.0,0.00018897,2]
[350224200,1737706244466,-803.47,0.00018897,2]
[350224202,1737706244475,-500.0,0.00018897,2]
[350224204,1737706244484,-620.10808636,0.00018897,2]
[350224206,1737706244494,-2059.53,0.00018897,2]
[350224208,1737706244503,-500.0,0.00018897,2]
[350224210,1737706244512,-430.21552245,0.00018897,2]
[350224212,1737706244521,-500.0,0.00018897,2]
[350224214,1737706244530,-1346.2,0.00018897,2]
[350224216,1737706244540,-644.98,0.00018897,2]
[350224218,1737706244549,-500.0,0.00018897,2]
[350224220,1737706244558,-500.0,0.00018897,2]
[350224222,1737706244568,-928.54,0.00018897,2]
[350224224,1737706244577,-500.0,0.00018897,2]
[350224226,1737706244586,-500.0,0.00018897,2]
[350224228,1737706244596,-1202.35,0.00018897,2]
[350224230,1737706244607,-500.0,0.00018897,2]
[350224232,1737706244616,-624.88,0.00018897,2]
[350224234,1737706244625,-1081.89,0.00018897,2]
[350224236,1737706244634,-500.0,0.00018897,2]
[350224238,1737706244644,-500.0,0.00018897,2]
[350224240,1737706244652,-2253.78,0.00018897,2]
[350224242,1737706244661,-500.0,0.00018897,2]
[350224244,1737706244670,-500.0,0.00018897,2]
[350224246,1737706244679,-500.0,0.00018897,2]
[350224248,1737706244688,-500.0,0.00018897,2]
[350224250,1737706244697,-500.0,0.00018897,2]
[350224252,1737706244707,-500.0,0.00018897,2]
[350224254,1737706244716,-3714.19,0.00018897,2]
[350224256,1737706244725,-500.0,0.00018897,2]
[350224258,1737706244735,-500.0,0.00018897,2]
[350224260,1737706244744,-500.0,0.00018897,2]
[350224262,1737706244753,-500.0,0.00018897,2]
[350224264,1737706244763,-500.0,0.00018897,2]
[350224266,1737706244773,-500.0,0.00018897,2]
[350224268,1737706244781,-452.16718222,0.00018897,2]
[350224270,1737706244790,-503.83964842,0.00018898,2]
[350224272,1737706244800,-509.57782686,0.00018898,2]
[350224274,1737706244809,-559.51985721,0.00018898,2]
[350224276,1737706244818,-500.0,0.00018898,2]
[350224278,1737706244827,-240.10488791,0.00018898,2]
[350224280,1737706244837,-300.31290349,0.00018898,7]
[350224282,1737706244846,-500.0,0.00018898,2]
[350224284,1737706244856,-500.0,0.00018898,2]
[350224286,1737706244865,-500.0,0.00018898,2]
[350224288,1737706244874,-500.0,0.00018898,2]
[350224290,1737706244883,-505.48774832,0.00018898,2]
[350224292,1737706244892,-500.0,0.00018898,2]
[350224294,1737706244901,-434.32363279,0.00018898,2]
[350224296,1737706244911,-500.0,0.00018898,2]
[350224298,1737706244920,-500.0,0.00018898,2]
[350224300,1737706244930,-500.0,0.00018898,2]
[350224302,1737706244940,-363.81798194,0.00018898,2]
[350224304,1737706244949,-500.0,0.00018898,2]
[350224306,1737706244957,-500.0,0.00018898,2]
[350224308,1737706244967,-500.0,0.00018898,2]
[350224310,1737706244980,-504.1656279,0.00018898,2]
[350224312,1737706244989,-301.43466052,0.00018898,2]
[350224314,1737706244998,-500.0,0.00018898,2]
[350224316,1737706245008,-500.0,0.00018898,2]
[350224318,1737706245019,-500.0,0.00018898,2]
[350224320,1737706245028,-508.61198572,0.00018898,2]
[350224322,1737706245037,-477.15401398,0.00018898,2]
[350224324,1737706245047,-504.07610593,0.00018898,2]
[350224326,1737706245056,-500.0,0.00018898,2]
[350224328,1737706245065,-515.65792414,0.00018898,2]
[350224330,1737706245074,-500.0,0.00018898,2]
[350224332,1737706245084,-500.0,0.00018898,2]
[350224334,1737706245095,-500.0,0.00018898,2]
[350224336,1737706245106,-500.0,0.00018898,2]
[350224338,1737706245115,-513.66832503,0.00018898,2]
[350224340,1737706245124,-509.0706317,0.00018898,2]
[350224342,1737706245134,-500.0,0.00018898,2]
[350224344,1737706245144,-507.90846795,0.00018898,2]
[350224346,1737706245153,-556.43508935,0.00018898,2]
[350224348,1737706245162,-502.86956803,0.00018898,2]
[350224350,1737706245172,-503.13514765,0.00018898,2]
[350224353,1737706245182,-500.0,0.00018898,2]
[350224355,1737706245191,-500.0,0.00018898,2]
[350224357,1737706245200,-500.0,0.00018898,2]
[350224359,1737706245209,-500.0,0.00018898,2]
[350224361,1737706245218,-500.0,0.00018898,2]
[350224363,1737706245227,-500.0,0.00018898,2]
[350224365,1737706245236,-300.0,0.00018898,2]
[350224366,1737706245245,-500.0,0.00018898,2]
[350224367,1737706245253,-500.0,0.00018898,2]
[350224368,1737706245262,-314.11829087,0.00018898,2]
[350224369,1737706245271,-500.0,0.00018898,2]
[350224370,1737706245279,-250.80157353,0.00018898,2]
[350224371,1737706245288,-500.0,0.00018898,2]
[350224372,1737706245297,-500.0,0.00018898,2]
[350224374,1737706245306,-500.0,0.00018898,2]
[350224376,1737706245314,-500.0,0.00018898,2]
[350224378,1737706245323,-500.0,0.00018898,2]
[350224380,1737706245332,-508.01276972,0.00018898,2]
[350224382,1737706245341,-500.0,0.00018898,2]
[350224384,1737706245350,-500.0,0.00018898,2]
[350224386,1737706245360,-500.0,0.00018898,2]
[350224388,1737706245369,-500.0,0.00018898,2]
[350224390,1737706245378,-567.63189087,0.00018898,2]
[350224392,1737706245386,-500.0,0.00018898,2]
[350224393,1737706245396,-500.0,0.00018898,2]
[350224395,1737706245405,-500.0,0.00018898,2]
[350224397,1737706245414,-500.0,0.00018898,2]
[350224399,1737706245424,-500.0,0.00018898,2]
[350224401,1737706245433,-504.60417649,0.00018898,2]
[350224416,1737706245565,-500.0,0.00018898,2]
[350224418,1737706245575,-505.87707327,0.00018898,2]
[350224420,1737706245585,-500.0,0.00018898,2]
[350224422,1737706245594,-500.0,0.00018898,2]
[350224424,1737706245605,-500.0,0.00018898,2]
[350224426,1737706245615,-500.0,0.00018898,2]
[350224428,1737706245624,-500.0,0.00018898,2]
[350224430,1737706245633,-500.0,0.00018898,2]
[350224432,1737706245643,-502.7489489,0.00018898,2]
[350224434,1737706245651,-514.44267669,0.00018898,2]
[350224436,1737706245660,-500.0,0.00018898,2]
[350224438,1737706245669,-500.0,0.00018898,2]
[350224440,1737706245678,-500.0,0.00018898,2]
[350224442,1737706245687,-500.0,0.00018898,2]
[350224444,1737706245698,-500.0,0.00018898,2]
[350224446,1737706245707,-500.0,0.00018898,2]
[350224448,1737706245716,-500.0,0.00018898,2]
[350224450,1737706245725,-500.0,0.00018898,2]
[350224452,1737706245735,-500.0,0.00018898,2]
[350224454,1737706245744,-329.09297932,0.00018898,2]
[350224456,1737706245753,-500.0,0.00018898,2]
[350224458,1737706245763,-500.0,0.00018898,2]
[350224460,1737706245772,-503.07511198,0.00018898,2]
[350224462,1737706245781,-500.0,0.00018898,2]
[350224464,1737706245790,-500.0,0.00018898,2]
[350224466,1737706245799,-500.0,0.00018898,2]
[350224468,1737706245808,-500.0,0.00018898,2]
[350224470,1737706245818,-500.0,0.00018898,2]
[350224472,1737706245827,-500.0,0.00018898,2]
[350224474,1737706245836,-500.0,0.00018898,2]
[350224476,1737706245845,-500.0,0.00018898,2]
[350224478,1737706245856,-500.0,0.00018898,2]
[350224480,1737706245865,-500.0,0.00018898,2]
[350224482,1737706245874,-500.0,0.00018898,2]
[350224484,1737706245883,-500.0,0.00018898,2]
[350224486,1737706245892,-500.0,0.00018898,2]
[350224488,1737706245901,-500.0,0.00018898,2]
[350224490,1737706245910,-500.0,0.00018898,2]
[350224492,1737706245920,-500.0,0.00018898,2]
[350224494,1737706245930,-502.42723347,0.00018898,2]
[350224496,1737706245940,-500.0,0.00018898,2]
[350224498,1737706245949,-500.0,0.00018898,2]
[350224500,1737706245959,-500.0,0.00018898,2]
[350224502,1737706245971,-500.0,0.00018898,2]
[350224504,1737706245982,-501.49282566,0.00018898,2]
[350224506,1737706245991,-500.0,0.00018898,2]
[350224508,1737706246000,-500.0,0.00018898,2]
[350224510,1737706246011,-500.0,0.00018898,2]
[350224512,1737706246020,-507.47068958,0.00018898,2]
[350224513,1737706246029,-500.0,0.00018898,2]
[350224514,1737706246038,-516.82846085,0.00018898,2]
[350224515,1737706246047,-500.0,0.00018898,2]
[350224516,1737706246056,-500.0,0.00018898,2]
[350224517,1737706246065,-500.0,0.00018898,2]
[350224518,1737706246074,-500.0,0.00018898,2]
[350224519,1737706246083,-500.0,0.00018898,2]
[350224520,1737706246091,-500.0,0.00018898,2]
[350224521,1737706246100,-500.0,0.00018898,2]
[350224522,1737706246110,-500.0,0.00018898,2]
[350224523,1737706246119,-500.0,0.00018898,2]
[350224524,1737706246128,-500.0,0.00018898,2]
[350224525,1737706246139,-500.0,0.00018898,2]
[350224526,1737706246148,-5000.0,0.00018898,2]
[350224527,1737706246157,-500.0,0.00018898,2]
[350224528,1737706246166,-500.0,0.00018898,2]
[350224529,1737706246176,-500.0,0.00018898,2]
[350224530,1737706246185,-500.0,0.00018898,2]
[350224531,1737706246195,-500.0,0.00018898,2]
[350224533,1737706246204,-504.57078056,0.00018898,2]
[350224534,1737706246213,-500.0,0.00018898,2]
[350224536,1737706246222,-501.18010024,0.00018898,2]
[350224538,1737706246231,-500.0,0.00018898,2]
[350224540,1737706246240,-500.0,0.00018898,2]
[350224542,1737706246249,-500.0,0.00018898,2]
[350224544,1737706246259,-571.67,0.00018898,2]
[350224546,1737706246268,-503.65180435,0.00018898,2]
[350224548,1737706246277,-500.0,0.00018898,2]
[350224550,1737706246287,-500.0,0.00018898,2]
[350224552,1737706246297,-500.0,0.00018898,2]
[350224554,1737706246306,-500.0,0.00018898,2]
[350224556,1737706246316,-500.0,0.00018898,2]
[350224558,1737706246325,-500.0,0.00018898,2]
[350224560,1737706246335,-500.0,0.00018898,2]
[350224562,1737706246344,-500.0,0.00018898,2]
[350224564,1737706246354,-500.0,0.00018898,2]
[350224566,1737706246363,-500.0,0.00018898,2]
[350224568,1737706246372,-464.77965059,0.00018898,2]
[350224570,1737706246381,-500.0,0.00018898,2]
[350224572,1737706246391,-500.0,0.00018898,2]
[350224574,1737706246400,-370.14018003,0.00018898,2]
[350224576,1737706246410,-500.0,0.00018898,2]
[350224577,1737706246418,-500.0,0.00018898,2]
[350224578,1737706246427,-222.17,0.00018898,2]
[350224579,1737706246436,-500.0,0.00018898,2]
[350224580,1737706246445,-500.0,0.00018898,2]
[350224581,1737706246454,-500.0,0.00018898,2]
[350224582,1737706246463,-500.0,0.00018898,2]
[350224583,1737706246472,-500.0,0.00018898,2]
[350224585,1737706246481,-500.0,0.00018898,2]
[350224587,1737706246492,-500.0,0.00018898,2]
[350224589,1737706246502,-500.0,0.00018898,2]
[350224591,1737706246511,-500.0,0.00018898,2]
[350224593,1737706246520,-500.0,0.00018898,2]
[350224595,1737706246530,-500.0,0.00018898,2]
[350224596,1737706246540,-500.0,0.00018898,2]
[350224598,1737706246549,-500.0,0.00018898,2]
[350224600,1737706246558,-500.0,0.00018898,2]
[350224602,1737706246568,-500.0,0.00018898,2]
[350224605,1737706246578,-500.0,0.00018898,2]
[350224607,1737706246587,-500.0,0.00018898,2]
[350224609,1737706246596,-500.0,0.00018898,2]
[350224610,1737706246606,-500.0,0.00018898,2]
[350224612,1737706246615,-503.98109228,0.00018898,2]
[350224614,1737706246624,-500.0,0.00018898,2]
[350224616,1737706246633,-500.0,0.00018898,2]
[350224618,1737706246642,-500.0,0.00018898,2]
[350224620,1737706246652,-500.0,0.00018898,2]
[350224622,1737706246661,-500.0,0.00018898,2]
[350224624,1737706246672,-500.0,0.00018898,2]
[350224626,1737706246682,-500.0,0.00018898,2]
[350224628,1737706246691,-500.0,0.00018898,2]
[350224630,1737706246702,-500.0,0.00018898,2]
[350224632,1737706246710,-500.0,0.00018898,2]
[350224634,1737706246720,-500.0,0.00018898,2]
[350224636,1737706246731,-500.0,0.00018898,2]
[350224638,1737706246741,-500.0,0.00018898,2]
[350224640,1737706246750,-500.0,0.00018898,2]
[350224642,1737706246759,-500.0,0.00018898,2]
[350224644,1737706246769,-500.0,0.00018898,2]
[350224646,1737706246778,-500.0,0.00018898,2]
[350224648,1737706246787,-500.0,0.00018898,2]
[350224650,1737706246797,-500.0,0.00018898,2]
[350224652,1737706246806,-500.0,0.00018898,2]
[350224654,1737706246816,-500.0,0.00018898,2]
[350224656,1737706246826,-500.0,0.00018898,2]
[350224658,1737706246835,-500.0,0.00018898,2]
[350224660,1737706246844,-500.0,0.00018898,2]
[350224662,1737706246853,-500.0,0.00018898,2]
[350224664,1737706246863,-500.0,0.00018898,2]
[350224666,1737706246872,-500.0,0.00018898,2]
[350224669,1737706246882,-500.0,0.00018898,2]
[350224670,1737706246891,-500.0,0.00018898,2]
[350224672,1737706246902,-500.0,0.00018898,2]
[350224674,1737706246911,-500.0,0.00018898,2]
[350224676,1737706246921,-500.0,0.00018898,2]
[350224678,1737706246930,-81957.23870767,0.00018898,2]
[350224680,1737706246940,-1322.0,0.000189,2]
[350224682,1737706246949,-206.09753731,0.000189,2]
[350224685,1737706246959,-1409.09767931,0.00018942,2]
[350224687,1737706246973,-500.0,0.00018986,2]
[350224689,1737706246982,-500.0,0.00018999,2]
[350224691,1737706246991,-500.0,0.00018999,2]
[350224692,1737706247000,-500.0,0.00018999,2]
[350224694,1737706247012,-500.0,0.00018999,2]
[350224696,1737706247021,-500.0,0.00018999,2]
[350224698,1737706247031,-500.0,0.00018999,2]
[350224700,1737706247040,-500.0,0.00018999,2]
[350224703,1737706247052,-1000.0,0.00018999,2]
[350224705,1737706247062,-500.0,0.00018999,2]
[350224707,1737706247071,-500.0,0.00018999,2]
[350224709,1737706247080,-745.76,0.00018999,2]
[350224711,1737706247090,-850.69,0.00018999,2]
[350224713,1737706247100,-538.21493752,0.00018999,2]
[350224715,1737706247109,-79980.33869937,0.00019,3]
[350224731,1737706247462,-504.81174858,0.00018897,2]
[350224732,1737706247471,-3368.4382512,0.00019,3]
[350224733,1737706247483,-94486.28819153,0.00019,3]
[350224734,1737706247492,-10755.39538187,0.00019,2]
[350224735,1737706247502,-17882.7,0.00019,2]
[350224736,1737706247511,-180.181671,0.00019,2]
[350224737,1737706247521,-180.181671,0.00019,2]
[350224738,1737706247530,-151.0,0.00019,2]
[350224739,1737706247539,-151.0,0.00019,2]
[350224740,1737706247548,-151.0,0.00019,2]
[350224741,1737706247557,-3000.0,0.00019,2]
[350224743,1737706247567,-184.826354,0.00019,2]
[350224744,1737706247576,-151.0,0.00019,2]
[350224745,1737706247585,-151.0,0.00019,2]
[350224746,1737706247593,-155.079521,0.00019,2]
[350224747,1737706247602,-151.0,0.00019,2]
[350224748,1737706247612,-151.0,0.00019,2]
[350224749,1737706247621,-222.078597,0.00019,2]
[350224750,1737706247630,-192.58417,0.00019,2]
[350224752,1737706247639,-192.58417,0.00019,2]
[350224754,1737706247648,-205.142783,0.00019,2]
[350224755,1737706247657,-151.0,0.00019,2]
[350224757,1737706247666,-205.142783,0.00019,2]
[350224759,1737706247676,-155.582035,0.00019,2]
[350224761,1737706247685,-151.0,0.00019,2]
[350224763,1737706247694,-151.0,0.00019,2]
[350224765,1737706247703,-545.602014,0.00019,2]
[350224767,1737706247713,-545.602014,0.00019,2]
[350224769,1737706247722,-152.0,0.00019,2]
[350224771,1737706247731,-1409.09767931,0.00019014,2]
[350224773,1737706247740,-150.78950604,0.00019064,2]
[350224775,1737706247750,-1409.09767931,0.00019086,2]
[350224777,1737706247759,-1000.0,0.000191,2]
[350224779,1737706247767,-844.4712482,0.00019158,2]
[350224781,1737706247777,-2888.7046711,0.00019158,2]
[350224783,1737706247786,-7084.3874976,0.00019158,2]
[350224785,1737706247795,-1409.09767931,0.00019159,2]